fUSD/lending_fUSD_20251126
["ID","MTS","AMOUNT","RATE_DAILY","PERIOD"]
[394922423,1764121833631,-184.01108379,0.00039799,8]
[394922424,1764121833639,-500.0,0.00039799,8]
[394922425,1764121833649,-197.05113626,0.00039799,8]
[394922426,1764121833658,-170.94283567,0.00039799,8]
[394922427,1764121833667,-158.23729026,0.00039799,8]
[394922428,1764121833676,-256.89472824,0.00039799,8]
[394922429,1764121833687,-247.78773075,0.00039799,8]
[394922430,1764121833696,-215.59873877,0.00039799,8]
[394922431,1764121833706,-203.39249521,0.00039799,8]
[394922432,1764121833720,-358.43319774,0.00039799,8]
[394922433,1764121833730,-176.15415406,0.00039799,8]
[394922434,1764121833742,-500.0,0.00039799,8]
[394922435,1764121833751,-556.29470047,0.00039799,8]
[394922436,1764121833760,-512.05078534,0.00039799,8]
[394922437,1764121833769,-162.55496512,0.00039799,8]
[394922438,1764121833778,-500.0,0.00039799,8]
[394922439,1764121833788,-286.58451642,0.00039799,8]
[394922440,1764121833796,-161.41517279,0.00039799,8]
[394922441,1764121833806,-255.84858199,0.00039799,8]
[394922442,1764121833825,-536.35023715,0.00039799,8]
[394922443,1764121833836,-500.0,0.00039799,8]
[394922444,1764121833846,-500.0,0.00039799,8]
[394922445,1764121833856,-500.0,0.00039799,8]
[394922446,1764121833866,-232.44585778,0.00039799,8]
[394922447,1764121833878,-159.70686688,0.00039799,8]
[394922448,1764121833889,-117469.46261394,0.000398,2]
[394922449,1764121833938,151.0,0.00042017,30]
[394922450,1764121833973,294.93692,0.00042017,30]
[394922452,1764121837756,-306.58405067,0.00039799,8]
[394922453,1764121837766,-201.0571094,0.00039799,8]
[394922454,1764121837775,-140382.70245012,0.000398,2]
[394922455,1764121837784,-500.0,0.00039802,5]
[394922456,1764121837795,-1000.0,0.00039887,120]
[394922457,1764121837805,-220.19,0.0004,120]
[394922458,1764121837814,-157.93,0.0004,120]
[394922459,1764121837823,-275.59,0.0004,120]
[394922460,1764121837832,-640.82,0.0004,120]
[394922461,1764121837841,-193.1,0.0004,120]
[394922462,1764121837850,-174.93,0.0004,120]
[394922463,1764121837859,-33374.56170194,0.0004,3]
[394922566,1764121839887,-607.49999996,0.0004,3]
[394922567,1764121839971,-3250.44552466,0.0004,3]
[394922568,1764121839983,-880.955,0.0004,3]
[394922569,1764121839994,-319.5861908,0.0004,3]
[394922570,1764121840006,-1188.73747216,0.0004,3]
[394922571,1764121840017,-6613.53718667,0.0004,3]
[394922572,1764121840029,-1756.0,0.0004,3]
[394922573,1764121840073,-280.0836451,0.0004,3]
[394922650,1764121843479,-306.23900044,0.0004,3]
[394922651,1764121844164,-113273.81414601,0.0004,3]
[394922652,1764121844174,-250.0,0.00040055,2]
[394922653,1764121844188,-172.92449545,0.00040069,30]
[394922654,1764121844198,-500.0,0.00040073,2]
[394922655,1764121844208,-739.14198953,0.00040073,2]
[394922656,1764121844219,-500.0,0.00040073,8]
[394922657,1764121844228,-500.0,0.00040073,2]
[394922658,1764121844237,-500.0,0.00040073,8]
[394922659,1764121844247,-190.86180269,0.00040073,8]
[394922660,1764121844256,-2969.66,0.00040073,8]
[394922682,1764121844459,-386.59569329,0.00040073,8]
[394922684,1764121844469,-2641.0,0.00040073,8]
[394922686,1764121844478,-500.0,0.00040073,8]
[394922688,1764121844489,-500.0,0.00040073,8]
[394922690,1764121844498,-589.49698557,0.00040073,8]
[394922692,1764121844508,-183.21870405,0.00040073,8]
[394922695,1764121844519,-500.0,0.00040073,8]
[394922697,1764121844528,-244.69446521,0.00040073,8]
[394922699,1764121844537,-500.0,0.00040073,8]
[394922701,1764121844547,-473.2385,0.00040073,8]
[394922703,1764121844555,-500.0,0.00040073,8]
[394922705,1764121844568,-500.0,0.00040073,8]
[394922707,1764121844577,-500.0,0.00040073,8]
[394922709,1764121844585,-800.0,0.00040223,5]
[394922711,1764121844594,-5131.9877925,0.00040344,2]
[394922713,1764121844603,-500.0,0.00040347,2]
[394922715,1764121844612,-500.0,0.00040347,8]
[394922716,1764121844622,-500.0,0.00040347,2]
[394922719,1764121844631,-500.0,0.00040347,8]
[394922720,1764121844641,-2969.66,0.00040347,8]
[394922722,1764121844650,-2641.0,0.00040347,8]
[394922724,1764121844659,-500.0,0.00040347,8]
[394922727,1764121844669,-478.6621353,0.00040347,8]
[394922729,1764121844678,-500.0,0.00040347,8]
[394922731,1764121844687,-500.0,0.00040347,8]
[394922733,1764121844696,-500.0,0.00040347,8]
[394922734,1764121844705,-500.0,0.00040347,8]
[394922737,1764121844720,-500.0,0.00040347,8]
[394922739,1764121844731,-166.66,0.00040369,30]
[394922741,1764121844740,-500.0,0.00040621,2]
[394922743,1764121844749,-500.0,0.00040621,8]
[394922745,1764121844758,-500.0,0.00040621,2]
[394922746,1764121844769,-500.0,0.00040621,8]
[394922748,1764121844778,-2969.66,0.00040621,8]
[394922750,1764121844787,-2641.0,0.00040621,8]
[394922752,1764121844798,-500.0,0.00040621,8]
[394922754,1764121844807,-500.0,0.00040621,8]
[394922756,1764121844816,-500.0,0.00040621,8]
[394922758,1764121844825,-500.0,0.00040621,8]
[394922760,1764121844834,-500.0,0.00040621,8]
[394922762,1764121844843,-500.0,0.00040621,8]
[394922763,1764121844852,-168.0,0.00040679,2]
[394922764,1764121844861,-500.0,0.00040689,8]
[394922765,1764121844870,-500.0,0.00040689,8]
[394922766,1764121844879,-344.0,0.00040711,30]
[394922767,1764121844888,-1000.0,0.00040742,2]
[394922768,1764121844897,-160.0,0.00040742,2]
[394922769,1764121844905,-999.0,0.00040851,3]
[394922770,1764121844917,-500.0,0.00040895,2]
[394922771,1764121844926,-500.0,0.00040895,8]
[394922772,1764121844936,-500.0,0.00040895,2]
[394922773,1764121844946,-500.0,0.00040895,8]
[394922774,1764121844956,-2969.66,0.00040895,8]
[394922775,1764121844965,-2641.0,0.00040895,8]
[394922776,1764121844975,-500.0,0.00040895,8]
[394922777,1764121844984,-500.0,0.00040895,8]
[394922778,1764121844993,-500.0,0.00040895,8]
[394922779,1764121845002,-500.0,0.00040895,8]
[394922780,1764121845012,-500.0,0.00040895,8]
[394922781,1764121845021,-500.0,0.00040895,8]
[394922782,1764121845031,-3847.0,0.00040949,2]
[394922783,1764121845040,-500.0,0.00040963,8]
[394922784,1764121845049,-500.0,0.00040963,8]
[394922785,1764121845059,-168.0,0.00040976,7]
[394922786,1764121845068,-307.40097452,0.00040999,15]
[394922787,1764121845078,-266357.66231649,0.00041,2]
[394922788,1764121845090,-333.44283979,0.00041,2]
[394922789,1764121845102,-4547.0,0.00041,2]
[394922790,1764121861233,200.0,0.00042017,30]
[394922791,1764121866173,623.6310357,0.00042017,30]
[394922792,1764121867626,302.30175312,0.00022418,120]
[394922793,1764121868663,204.53270852,0.00042017,30]
[394922794,1764121868978,854.29700083,0.00042017,30]
[394922795,1764121872626,195.0,0.00022418,120]
[394922796,1764121874451,196.79675911,0.00042017,30]
[394922797,1764121886100,151.0,0.00042017,50]
[394922798,1764121886404,151.0,0.00042017,50]
[394922799,1764121886745,151.0,0.00042017,50]
[394922800,1764121887021,151.0,0.00042017,50]
[394922801,1764121887599,151.0,0.00042017,50]
[394922802,1764121887966,151.0,0.00042017,50]
[394922803,1764121888183,151.0,0.00042017,50]
[394922804,1764121888469,166.366635,0.00042017,50]
[394922805,1764121925632,195.0,0.00022418,120]
[394922806,1764121942224,200.0,0.00042017,30]
[394922807,1764121942710,300.0,0.00042017,30]
[394922808,1764122027639,634.09541025,0.00042017,30]
[394922809,1764122161558,200.0,0.00042017,30]
[394922810,1764122184042,44035.41,0.00042017,90]
[394922811,1764122229287,168.01,0.00042017,30]
[394922812,1764122242038,200.0,0.00042017,30]
[394922813,1764122242402,300.0,0.00042017,30]
[394922814,1764122265214,353.46307649,0.00042017,30]
[394922815,1764122315742,151.0,0.00042017,50]
[394922816,1764122316043,151.0,0.00042017,50]
[394922817,1764122318767,151.0,0.00042017,50]
[394922818,1764122319322,151.0,0.00042017,50]
[394922819,1764122319623,163.646443,0.00042017,50]
[394922821,1764122371816,151.0,0.00042017,50]
[394922822,1764122372109,151.0,0.00042017,50]
[394922823,1764122372404,151.0,0.00042017,50]
[394922824,1764122372806,151.0,0.00042017,50]
[394922825,1764122373032,151.0,0.00042017,30]
[394922826,1764122373104,151.549577,0.00042017,50]
[394922827,1764122373331,151.0,0.00042017,30]
[394922828,1764122426820,151.0,0.00042017,50]
[394922829,1764122427186,151.0,0.00042017,50]
[394922830,1764122430742,151.0,0.00042017,50]
[394922831,1764122430864,151.000005,0.00042017,50]
[394922832,1764122460841,200.0,0.00042017,30]
[394922833,1764122496336,500.0,0.00042017,120]
[394922834,1764122527828,633.869466,7.945e-05,2]
[394922835,1764122734656,151.0,0.00042017,50]
[394922836,1764122734957,151.0,0.00042017,50]
[394922837,1764122735249,151.0,0.00042017,50]
[394922838,1764122735546,226.163915,0.00042017,50]
[394922839,1764122750705,151.0,0.0001,2]
[394922840,1764122750899,151.0,0.0001,2]
[394922841,1764122751695,153.18526289,0.0001,2]
[394922842,1764122760929,200.0,0.00042017,30]
[394922843,1764122894922,507.0,0.00042017,30]
[394922845,1764122917151,1143.0,0.00042017,30]
[394922846,1764122945448,856.527753,0.00042017,60]
[394922859,1764123031975,-250.0,0.00017,2]
[394922860,1764123031985,-306.13624374,0.00017,2]
[394922861,1764123031995,-442.86375626,0.00017,2]
[394922862,1764123032081,-60.0082269,0.00017,2]
[394922863,1764123032090,-255.57482148,0.000179,2]
[394922864,1764123032165,-245.29510201,0.000179,2]
[394922865,1764123032174,-253.809884,0.000187,2]
[394922866,1764123032183,-185.30196561,0.000187,2]
[394922897,1764123037876,-64.69803439,0.000187,2]
[394922898,1764123037886,-250.0,0.000187,2]
[394922899,1764123037897,-120.31696611,0.0002038,2]
[394922900,1764123038062,-111.96303389,0.0002038,2]
[394922901,1764123038072,-216.12742942,0.00035,2]
[394922902,1764123038082,-4008.36,0.00036941,2]
[394922903,1764123038091,-154.19,0.00037011,2]
[394922904,1764123038101,-727.0,0.00037052,3]
[394922905,1764123038111,-777.94934188,0.00037053,30]
[394922906,1764123038121,-742.0764757,0.00037053,30]
[394922907,1764123038131,-526.88908871,0.00037053,30]
[394922908,1764123038141,-510.1100559,0.00037053,30]
[394922909,1764123038150,-161.64,0.00038,120]
[394922910,1764123038160,-500.0,0.00039799,8]
[394922911,1764123038169,-500.0,0.00039799,8]
[394922912,1764123038179,-6021.7685183,0.00039799,2]
[394922913,1764123038190,-271.6014817,0.00039799,2]
[394922914,1764123038199,-108.53022488,0.00039799,30]
[394922916,1764123038211,-123.51977512,0.00039799,30]
[394922917,1764123038220,-3316.95018694,0.0004,5]
[394922918,1764123038229,-500.0,0.00040073,8]
[394922919,1764123038238,-500.0,0.00040073,8]
[394922920,1764123038248,-500.0,0.00040347,8]
[394922921,1764123038257,-500.0,0.00040347,8]
[394922922,1764123038267,-171.61,0.00040356,2]
[394922923,1764123038276,-151.9,0.00040356,2]
[394922924,1764123038286,-180.12,0.00040356,2]
[394922925,1764123038296,-152.14,0.00040356,2]
[394922926,1764123038305,-177.74,0.00040356,2]
[394922927,1764123038315,-150.0,0.00040384,2]
[394922928,1764123038324,-150.0,0.00040384,2]
[394922929,1764123038333,-500.0,0.00040621,8]
[394922930,1764123038485,-500.0,0.00040621,8]
[394922931,1764123038536,-426.0,0.00040711,30]
[394922932,1764123038546,-598.02277631,0.00040742,2]
[394922933,1764123038556,-181.66396599,0.00040804,15]
[394922934,1764123038565,-217.83804073,0.00040808,2]
[394922935,1764123038574,-500.0,0.00040895,8]
[394922936,1764123038584,-500.0,0.00040895,8]
[394922937,1764123038593,-176.439,0.00040895,59]
[394922938,1764123038602,-500.0,0.00040899,31]
[394922939,1764123038612,-500.0,0.00040899,31]
[394922940,1764123038621,-500.0,0.00040899,31]
[394922941,1764123038630,-500.0,0.00040899,31]
[394922942,1764123038639,-500.0,0.00040899,31]
[394922943,1764123038648,-500.0,0.00040899,31]
[394922944,1764123038657,-500.0,0.00040899,31]
[394922945,1764123038667,-485.29113389,0.00040899,31]
[394922946,1764123038676,-500.0,0.00040899,31]
[394922947,1764123038685,-500.0,0.00040899,31]
[394922948,1764123038694,-500.0,0.00040899,31]
[394922949,1764123038704,-500.0,0.00040899,31]
[394922950,1764123038713,-500.0,0.00040899,31]
[394922951,1764123038722,-500.0,0.00040899,31]
[394922952,1764123038732,-500.0,0.00040899,31]
[394922953,1764123038741,-500.0,0.00040899,31]
[394922954,1764123038750,-500.0,0.00040899,31]
[394922955,1764123038759,-500.0,0.00040899,31]
[394922956,1764123038768,-43.91969348,0.00040899,31]
[394922957,1764123038780,-364.04984042,0.00040899,31]
[394922958,1764123038790,-92.0304661,0.00040899,31]
[394922959,1764123038804,-500.0,0.00040899,31]
[394922960,1764123038814,-500.0,0.00040899,31]
[394922961,1764123038824,-500.0,0.00040899,31]
[394922962,1764123038833,-69.5344799,0.00040899,31]
[394922963,1764123039976,-430.4655201,0.00040899,31]
[394922964,1764123039986,-152.83732248,0.00040899,31]
[394922965,1764123039996,-150.0,0.00040899,31]
[394922966,1764123040006,-684.19715746,0.000409,2]
[394922967,1764123040017,-547.42060492,0.000409,2]
[394922968,1764123040030,-5168.39403762,0.000409,2]
[394922969,1764123040041,-20757.76407247,0.000409,2]
[394922970,1764123040084,-500.0,0.000409,2]
[394922971,1764123040099,-325.929999,0.000409,2]
[394922972,1764123040111,-1321.25929716,0.000409,2]
[394922973,1764123040124,-10078.75992589,0.000409,2]
[394922974,1764123040198,-66794.04980548,0.000409,2]
[394922975,1764123040207,-567.23607753,0.000409,15]
[394922976,1764123040216,-179.0263676,0.000409,15]
[394922977,1764123040225,-265.47,0.00040904,2]
[394922978,1764123040235,-150.0,0.00040904,2]
[394922979,1764123040244,-150.0,0.00040904,2]
[394922980,1764123040254,-3671.5164298,0.00040959,2]
[394922981,1764123040263,-1502.6125067,0.00040959,2]
[394922982,1764123040273,-1400.6078851,0.00040959,2]
[394922983,1764123040282,-154.80035594,0.00040996,14]
[394922984,1764123040291,-158.01848884,0.00040999,8]
[394922985,1764123040300,-500.0,0.00040999,7]
[394922986,1764123040310,-500.0,0.00040999,7]
[394922987,1764123040319,-520.17901018,0.00040999,7]
[394922988,1764123040328,-500.0,0.00040999,8]
[394922989,1764123040338,-510.22691486,0.00040999,8]
[394922990,1764123040347,-376.64892454,0.00040999,8]
[394922991,1764123040356,-500.0,0.00040999,8]
[394922992,1764123040366,-500.0,0.00040999,8]
[394922993,1764123040375,-500.0,0.00040999,8]
[394922994,1764123040385,-999.0,0.00040999,120]
[394922995,1764123040394,-511.13120912,0.00040999,120]
[394922996,1764123040403,-500.0,0.00040999,2]
[394922997,1764123040412,-500.0,0.00040999,2]
[394922998,1764123040421,-523.08396703,0.00040999,8]
[394922999,1764123040431,-204.27922945,0.00040999,8]
[394923000,1764123040440,-508.13327839,0.00040999,8]
[394923001,1764123040449,-203.32866924,0.00040999,120]
[394923002,1764123040458,-2350.98,0.00040999,8]
[394923003,1764123040470,-500.0,0.00040999,8]
[394923004,1764123040479,-525.47058805,0.00040999,8]
[394923005,1764123040488,-2090.8,0.00040999,8]
[394923006,1764123040498,-500.0,0.00040999,8]
[394923007,1764123040507,-442.85603564,0.00040999,8]
[394923008,1764123040517,-500.0,0.00040999,8]
[394923009,1764123040526,-500.0,0.00040999,8]
[394923010,1764123040535,-500.0,0.00040999,8]
[394923011,1764123040544,-500.0,0.00040999,8]
[394923012,1764123040554,-8242.04724838,0.00041,21]
[394923013,1764123040563,-24021.90806994,0.00041,2]
[394923014,1764123040574,-290.65933611,0.00041,2]
[394923015,1764123040585,-1046.14276519,0.00041,2]
[394923016,1764123040595,-114455.10165664,0.00041,2]
[394923022,1764123043716,-177.74,0.00040356,2]
[394923023,1764123043726,-450.54861067,0.00041,2]
[394923024,1764123043737,-2469.02239873,0.00041,2]
[394923025,1764123043748,-1100.66566608,0.00041,2]
[394923026,1764123044549,-239509.69418595,0.00041,2]
[394923027,1764123044602,-20951.78422372,0.00041,2]
[394923030,1764123046272,-10041.38127557,0.00041,2]
[394923031,1764123060928,200.0,0.00042017,30]
[394923032,1764123168635,267.0,0.00025,120]
[394923033,1764123398267,180.0,0.00042017,120]
[394923035,1764123649243,235.96,0.00042017,120]
[394923036,1764123695969,999.27061479,0.00042017,120]
[394923037,1764123741332,2050.18211324,0.00042017,120]
[394923039,1764123907503,819.73916428,0.00042017,90]
[394923040,1764123908070,176.08482593,0.00042017,30]
[394923041,1764123910153,537.89213387,0.00042017,30]
[394923042,1764123911287,402.19695851,0.00042017,30]
[394923043,1764123911500,643.80587276,0.00042017,60]
[394923044,1764123911971,535.4250396,0.00042017,120]
[394923045,1764123912143,400.35135496,0.00042017,91]
[394923046,1764123912563,434.92230816,0.00042017,30]
[394923047,1764123914248,922.47447786,0.00042017,30]
[394923048,1764123916021,723.80247223,0.00042017,120]
[394923049,1764123917286,1095.48333412,0.00042017,30]
[394923050,1764123917395,479.91064395,0.00042017,120]
[394923051,1764123919450,1010.2382115,0.00042017,120]
[394923052,1764123920318,589.95655845,0.00042017,120]
[394923053,1764123922217,10032.95836661,0.00042017,120]
[394923054,1764123923373,778.27216924,0.00042017,30]
[394923055,1764123925151,255.84069432,0.00042017,120]
[394923056,1764123925839,1313.19010418,0.00042017,120]
[394923057,1764123928252,536.84321483,0.00042017,30]
[394923059,1764123932064,283.08542629,0.00042017,120]
[394923060,1764123932282,174.488572,0.0002,120]
[394923061,1764123934880,1037.34870778,0.00042017,30]
[394923062,1764123937935,542.30715442,0.00042017,120]
[394923063,1764123940608,240.50117729,0.00042017,30]
[394923064,1764123941277,796.06551598,0.00042017,30]
[394923065,1764123941631,290.68227554,0.00042017,120]
[394923066,1764123941747,447.1078121,0.00042017,120]
[394923067,1764123943832,215.89486227,0.00042017,120]
[394923068,1764123944194,205.37003445,0.00042017,120]
[394923069,1764123944972,1015.89088633,0.00042017,120]
[394923070,1764123946737,191.38116095,0.00042017,120]
[394923071,1764123947028,564.67870646,0.00042017,120]
[394923072,1764123950140,903.38026299,0.00042017,30]
[394923073,1764123951130,264.03331507,0.00042017,30]
[394923074,1764123957016,1267.3729616,0.00042017,120]
[394923075,1764123957575,912.20924543,0.00042017,30]
[394923076,1764123960437,1066.36997101,0.00042017,30]
[394923077,1764123960788,630.03284372,0.00042017,90]
[394923078,1764123963059,904.29520978,0.00042017,120]
[394923079,1764123963985,572.56625305,0.00042017,30]
[394923080,1764123964640,395.21711814,0.00042017,120]
[394923081,1764123964750,390.80714622,0.00042017,120]
[394923082,1764123967329,982.57862195,0.00042017,30]
[394923083,1764123967364,169.64232129,0.00042017,120]
[394923084,1764123969289,393.55643116,0.00042017,120]
[394923085,1764123972384,649.63905986,0.00042017,120]
[394923086,1764123972474,219.91257714,0.00042017,30]
[394923087,1764123972529,751.02229112,0.00042017,30]
[394923088,1764123973148,1015.38273902,0.00042017,30]
[394923089,1764123973727,723.55236891,0.00042017,120]
[394923090,1764123975312,696.48212045,0.00042017,120]
[394923091,1764123979559,776.0877375,0.00042017,120]
[394923092,1764123980249,2929.18794458,0.00042017,30]
[394923093,1764123980541,682.69192104,0.00042017,30]
[394923094,1764123980794,254.98412844,0.00042017,120]
[394923095,1764123988353,370.99699997,0.00042017,30]
[394923096,1764123988842,2034.3932253,0.00015,2]
[394923097,1764124002425,252.68592624,0.00042017,30]
[394923098,1764124017965,954.84976387,0.00042017,120]
[394923099,1764124018623,165.04640446,0.00042017,120]
[394923100,1764124023263,550.8342484,0.00042017,30]
[394923101,1764124023653,201.74558241,0.00042017,120]
[394923103,1764124028271,315.33908686,0.00042017,120]
[394923104,1764124029454,357.84364797,0.0002301,120]
[394923105,1764124031017,159.42142709,0.00042017,120]
[394923106,1764124046476,1068.81112394,0.00042017,30]
[394923107,1764124049990,532.785853,0.00042017,120]
[394923108,1764124050366,252.70571486,0.00042017,120]
[394923109,1764124051181,1064.37680883,0.00042017,120]
[394923110,1764124055366,1558.94193043,0.00042017,120]
[394923111,1764124056130,525.65485379,0.00042017,120]
[394923112,1764124061466,157.66548419,0.00042017,120]
[394923113,1764124061840,934.69964774,0.00042017,120]
[394923114,1764124062887,999.72386397,0.00042017,120]
[394923115,1764124063407,1099.716674,0.00042017,120]
[394923116,1764124063637,1049.76666381,0.00042017,120]
[394923117,1764124064638,532.76624446,0.00042017,30]
[394923118,1764124066535,698.91699511,0.00042017,30]
[394923119,1764124068657,997.0,0.00042017,30]
[394923120,1764124068978,1070.35767519,0.00042017,120]
[394923121,1764124069545,390.65970989,0.00042017,31]
[394923122,1764124075441,268.23171953,0.00042017,30]
[394923123,1764124081849,744.76875775,0.00042017,60]
[394923124,1764124084173,810.61502296,0.00042017,30]
[394923125,1764124084765,933.33592545,0.00042017,30]
[394923126,1764124085424,937.34443393,0.00042017,30]
[394923127,1764124088445,438.99260788,0.00042017,120]
[394923128,1764124096975,867.1503779,0.00042017,120]
[394923129,1764124103288,718.81138981,0.00042017,60]
[394923130,1764124104808,215.47363667,0.00042017,30]
[394923131,1764124105027,355.74346514,0.00042017,120]
[394923132,1764124105233,504.11441087,0.00042017,120]
[394923133,1764124105716,284.24,0.00013699,2]
[394923134,1764124106421,224.65214147,0.00042017,80]
[394923135,1764124107362,454.15260117,0.00042017,30]
[394923136,1764124107623,314.36553759,0.00042017,30]
[394923137,1764124107726,776.17113155,0.00042017,120]
[394923138,1764124108445,282.22089074,0.00042017,30]
[394923139,1764124108483,869.59174361,0.00042017,120]
[394923140,1764124108779,626.16049587,0.00042017,30]
[394923141,1764124108845,247.91626326,0.00042017,30]
[394923142,1764124108878,2295.82723499,0.00042017,60]
[394923143,1764124109067,241.749498,0.00042017,90]
[394923144,1764124109290,215.36977695,0.00042017,31]
[394923145,1764124110638,1693.47816479,0.00042017,120]
[394923146,1764124110922,1482.35007145,0.00042017,120]
[394923147,1764124112065,894.75203771,0.00042017,120]
[394923148,1764124112673,650.66802805,0.00042017,120]
[394923149,1764124112734,342.93263554,0.000246,120]
[394923150,1764124112863,756.0,0.00042017,120]
[394923151,1764124113184,487.22597086,0.00042017,30]
[394923152,1764124113797,937.21038516,0.00042017,120]
[394923153,1764124115628,404.603557,0.00042017,120]
[394923154,1764124116130,512.24786211,0.00042017,120]
[394923155,1764124116421,163.36120661,0.00042017,120]
[394923156,1764124116652,254.84594477,0.00042017,120]
[394923158,1764124117714,277.19633368,0.00042017,30]
[394923159,1764124117887,518.87606065,0.00042017,120]
[394923160,1764124119539,158.90806201,0.00042017,120]
[394923161,1764124120086,1113.49113025,0.00014999,2]
[394923162,1764124120577,534.43590063,0.00042017,30]
[394923163,1764124121152,977.57270476,0.00042017,120]
[394923164,1764124121457,486.98196126,0.00042017,120]
[394923165,1764124121984,327.24618501,0.00042017,30]
[394923166,1764124122383,300.15415738,0.00042017,60]
[394923167,1764124122987,451.51786082,0.00042017,48]
[394923168,1764124123394,1095.11932747,0.00042017,30]
[394923169,1764124123684,227.31437416,0.00042017,120]
[394923170,1764124123877,233.79876183,0.00042017,30]
[394923171,1764124124705,195.79749493,0.00042017,120]
[394923172,1764124124753,735.29353137,0.00042017,120]
[394923173,1764124124962,498.98388229,0.00042017,60]
[394923174,1764124125226,3156.47893995,0.00042017,30]
[394923175,1764124125257,898.92912325,0.00042017,30]
[394923176,1764124125290,659.828768,0.00042017,30]
[394923177,1764124125653,839.76436834,0.00042017,120]
[394923178,1764124125720,755.56311203,0.00042017,30]
[394923179,1764124126481,1395.48476029,0.00042017,120]
[394923180,1764124126810,306.69050614,0.00042017,120]
[394923181,1764124126842,371.96708854,0.00042017,120]
[394923182,1764124127816,553.88212076,0.00042017,30]
[394923183,1764124127849,666.56766951,0.00042017,45]
[394923184,1764124128395,500.0,0.00042017,120]
[394923185,1764124128427,690.52301309,0.00042017,30]
[394923186,1764124128970,185.72256945,0.00042017,120]
[394923187,1764124129271,287.84447746,0.00042017,120]
[394923188,1764124130223,161.49965542,0.00042017,120]
[394923189,1764124130443,658.0,0.00042017,120]
[394923190,1764124130548,2313.11073359,0.00042017,30]
[394923191,1764124130706,294.95415681,0.00042017,30]
[394923193,1764124131194,1921.77594087,0.00042017,120]
[394923194,1764124197465,2501.1,0.00042017,30]
[394923216,1764124232108,-1326.42870556,0.0002,2]
[394923217,1764124232118,-284.24,0.00020187,2]
[394923218,1764124232129,-284.24,0.00026676,2]
[394923219,1764124232137,-153.12587718,0.00028,120]
[394923220,1764124232147,-151.59154874,0.0003013,120]
[394923221,1764124232156,-250.0,0.000308,2]
[394923222,1764124232165,-338.0,0.00032,120]
[394923223,1764124232175,-284.24,0.00033165,2]
[394923224,1764124232184,-200.0,0.00034,120]
[394923225,1764124232194,-162.89386852,0.000365,120]
[394923226,1764124232206,-65.10613148,0.000365,120]
[394923227,1764124232216,-300.75386852,0.00036888,60]
[394923228,1764124232227,-463.52990528,0.00036888,60]
[394923244,1764124238122,-636.88586202,0.00036888,60]
[394923245,1764124238180,-177.86891061,0.00036888,60]
[394923246,1764124238189,-654.26041873,0.00037,30]
[394923247,1764124238231,-660.19687358,0.00037,30]
[394923248,1764124238288,-2104.84270769,0.00037,30]
[394923249,1764124238298,-500.0,0.00037053,30]
[394923250,1764124238307,-500.0,0.00037053,30]
[394923251,1764124238317,-500.0,0.00037053,30]
[394923252,1764124238326,-900.0,0.00037053,30]
[394923253,1764124238336,-56.6861753,0.00037053,30]
[394923254,1764124238347,-443.3138247,0.00037053,30]
[394923255,1764124238356,-500.0,0.00037053,30]
[394923256,1764124238366,-500.0,0.00037053,30]